[Event "Titled Tuesday Blitz July 4 Late 2023"]
[White "texie1"]
[Black "Rodriguez Santiago, Jaime"]
[BlackFideId "3100898"]
[WhiteElo "2425"]
[BlackElo "2326"]
[Result "1-0"]
[Round "8"]
[TimeControl "180+2"]
[Date "2023.07.04"]
[WhiteClock "0:00:28"]
[BlackClock "0:00:18"]
[Board "103"]

1. Nf3 {[%clk 0:03:00]}  Nf6 {[%clk 0:02:56]} 2. c4 {[%clk 0:02:57]}  e6 {[%clk 0:02:55]} 3. e3 {[%clk 0:02:55]}  d5 {[%clk 0:02:54]} 4. b3 {[%clk 0:02:56]}  c5 {[%clk 0:02:54]} 5. Bb2 {[%clk 0:02:54]}  Nc6 {[%clk 0:02:54]} 6. cxd5 {[%clk 0:02:52]}  exd5 {[%clk 0:02:53]} 7. d4 {[%clk 0:02:52]}  Bg4 {[%clk 0:02:36]} 8. Be2 {[%clk 0:02:45]}  Be7 {[%clk 0:02:32]} 9. O-O {[%clk 0:02:42]}  O-O {[%clk 0:02:31]} 10. h3 {[%clk 0:02:39]}  Bh5 {[%clk 0:02:31]} 11. dxc5 {[%clk 0:02:33]}  Bxc5 {[%clk 0:02:27]} 12. Nc3 {[%clk 0:02:28]}  Re8 {[%clk 0:02:17]} 13. Rc1 {[%clk 0:02:22]}  Bf8 {[%clk 0:02:06]} 14. Nb5 {[%clk 0:02:18]}  a6 {[%clk 0:02:04]} 15. Nbd4 {[%clk 0:02:17]}  Ne4 {[%clk 0:02:03]} 16. Nxc6 {[%clk 0:02:14]}  bxc6 {[%clk 0:02:03]} 17. Rxc6 {[%clk 0:02:14]}  Qa5 {[%clk 0:01:57]} 18. Qc2 {[%clk 0:01:53]}  Bg6 {[%clk 0:01:55]} 19. Bd3 {[%clk 0:01:48]}  Nd6 {[%clk 0:01:39]} 20. Bxg6 {[%clk 0:01:36]}  hxg6 {[%clk 0:01:40]} 21. a3 {[%clk 0:01:33]}  Rac8 {[%clk 0:01:39]} 22. Rxc8 {[%clk 0:01:07]}  Rxc8 {[%clk 0:01:40]} 23. Qd3 {[%clk 0:01:07]}  Ne4 {[%clk 0:01:18]} 24. Rd1 {[%clk 0:01:06]}  Rb8 {[%clk 0:01:17]} 25. b4 {[%clk 0:01:02]}  Qa4 {[%clk 0:01:12]} 26. Rc1 {[%clk 0:00:50]}  a5 {[%clk 0:01:08]} 27. Qxd5 {[%clk 0:00:46]}  axb4 {[%clk 0:01:02]} 28. Qxe4 {[%clk 0:00:40]}  Qb3 {[%clk 0:01:02]} 29. Be5 {[%clk 0:00:31]}  Re8 {[%clk 0:00:58]} 30. axb4 {[%clk 0:00:31]}  f6 {[%clk 0:00:58]} 31. Qc4+ {[%clk 0:00:28]}  Qxc4 {[%clk 0:00:58]} 32. Rxc4 {[%clk 0:00:29]}  fxe5 {[%clk 0:00:58]} 33. b5 {[%clk 0:00:26]}  e4 {[%clk 0:00:58]} 34. Ng5 {[%clk 0:00:25]}  Be7 {[%clk 0:00:56]} 35. Nxe4 {[%clk 0:00:25]}  Rb8 {[%clk 0:00:55]} 36. Nc3 {[%clk 0:00:23]}  Bf6 {[%clk 0:00:54]} 37. Nd5 {[%clk 0:00:20]}  Rxb5 {[%clk 0:00:52]} 38. Nxf6+ {[%clk 0:00:20]}  gxf6 {[%clk 0:00:53]} 39. Rc7 {[%clk 0:00:21]}  Rb1+ {[%clk 0:00:50]} 40. Kh2 {[%clk 0:00:21]}  Rb2 {[%clk 0:00:50]} 41. Kg3 {[%clk 0:00:21]}  Rb5 {[%clk 0:00:49]} 42. f3 {[%clk 0:00:21]}  Rb3 {[%clk 0:00:49]} 43. e4 {[%clk 0:00:21]}  Rb2 {[%clk 0:00:49]} 44. h4 {[%clk 0:00:22]}  Rd2 {[%clk 0:00:47]} 45. Ra7 {[%clk 0:00:22]}  Rc2 {[%clk 0:00:47]} 46. Ra6 {[%clk 0:00:22]}  Kg7 {[%clk 0:00:47]} 47. Kh3 {[%clk 0:00:22]}  Rc1 {[%clk 0:00:46]} 48. g4 {[%clk 0:00:22]}  Rh1+ {[%clk 0:00:45]} 49. Kg3 {[%clk 0:00:22]}  Rg1+ {[%clk 0:00:45]} 50. Kf4 {[%clk 0:00:22]}  Rh1 {[%clk 0:00:45]} 51. Ra7+ {[%clk 0:00:22]}  Kg8 {[%clk 0:00:43]} 52. Ra8+ {[%clk 0:00:22]}  Kg7 {[%clk 0:00:43]} 53. Ra7+ {[%clk 0:00:23]}  Kg8 {[%clk 0:00:43]} 54. Kg3 {[%clk 0:00:23]}  Rg1+ {[%clk 0:00:42]} 55. Kh2 {[%clk 0:00:24]}  Rf1 {[%clk 0:00:42]} 56. Kg2 {[%clk 0:00:24]}  Rb1 {[%clk 0:00:42]} 57. h5 {[%clk 0:00:25]}  g5 {[%clk 0:00:38]} 58. Kf2 {[%clk 0:00:25]}  Rb3 {[%clk 0:00:37]} 59. Kg3 {[%clk 0:00:25]}  Rb1 {[%clk 0:00:36]} 60. h6 {[%clk 0:00:25]}  Rh1 {[%clk 0:00:35]} 61. h7+ {[%clk 0:00:25]}  Kh8 {[%clk 0:00:36]} 62. Kg2 {[%clk 0:00:24]}  Rh6 {[%clk 0:00:31]} 63. Rf7 {[%clk 0:00:24]}  Rg6 {[%clk 0:00:30]} 64. Kg3 {[%clk 0:00:24]}  Rh6 {[%clk 0:00:29]} 65. Kg2 {[%clk 0:00:24]}  Rg6 {[%clk 0:00:29]} 66. Kf2 {[%clk 0:00:24]}  Rh6 {[%clk 0:00:29]} 67. Ke3 {[%clk 0:00:25]}  Rh3 {[%clk 0:00:28]} 68. e5 {[%clk 0:00:23]}  fxe5 {[%clk 0:00:28]} 69. Ke4 {[%clk 0:00:24]}  Rxh7 {[%clk 0:00:23]} 70. Rxh7+ {[%clk 0:00:24]}  Kxh7 {[%clk 0:00:23]} 71. Kxe5 {[%clk 0:00:24]}  Kg6 {[%clk 0:00:24]} 72. Ke6 {[%clk 0:00:25]}  Kg7 {[%clk 0:00:24]} 73. Kf5 {[%clk 0:00:25]}  Kh6 {[%clk 0:00:24]} 74. Kf6 {[%clk 0:00:25]}  Kh7 {[%clk 0:00:23]} 75. Kxg5 {[%clk 0:00:26]}  Kh8 {[%clk 0:00:23]} 76. f4 {[%clk 0:00:27]}  Kg7 {[%clk 0:00:23]} 77. f5 {[%clk 0:00:28]}  Kh8 {[%clk 0:00:18]} 78. Kf6 {[%clk 0:00:28]} 1-0


[Site "https://www.chess.com"]

[Event "Titled Tuesday Blitz July 4 Late 2023"]
[White "KorolDimitriy75"]
[Black "Osmonbekov, Talaibek"]
[BlackFideId "2017253"]
[WhiteElo "2424"]
[BlackElo "2169"]
[Result "0-1"]
[Round "8"]
[TimeControl "180+2"]
[Date "2023.07.04"]
[WhiteClock "0:00:00"]
[BlackClock "0:00:13"]
[Board "104"]

1. d4 {[%clk 0:02:56]}  e6 {[%clk 0:02:59]} 2. c4 {[%clk 0:02:55]}  f5 {[%clk 0:02:59]} 3. Nc3 {[%clk 0:02:55]}  Bb4 {[%clk 0:02:59]} 4. Qc2 {[%clk 0:02:55]}  Nf6 {[%clk 0:02:59]} 5. Nf3 {[%clk 0:02:55]}  O-O {[%clk 0:02:59]} 6. Bd2 {[%clk 0:02:54]}  b6 {[%clk 0:02:58]} 7. g3 {[%clk 0:02:52]}  Bb7 {[%clk 0:02:57]} 8. Bg2 {[%clk 0:02:52]}  a5 {[%clk 0:02:56]} 9. O-O {[%clk 0:02:51]}  d6 {[%clk 0:02:56]} 10. Rfd1 {[%clk 0:02:48]}  Nbd7 {[%clk 0:02:55]} 11. Rac1 {[%clk 0:02:45]}  Bxc3 {[%clk 0:02:44]} 12. Bxc3 {[%clk 0:02:45]}  Ne4 {[%clk 0:02:44]} 13. d5 {[%clk 0:01:51]}  e5 {[%clk 0:02:40]} 14. b3 {[%clk 0:01:45]}  Nxc3 {[%clk 0:02:37]} 15. Qxc3 {[%clk 0:01:44]}  Nc5 {[%clk 0:02:35]} 16. Nd2 {[%clk 0:01:35]}  Bc8 {[%clk 0:02:33]} 17. a3 {[%clk 0:01:27]}  Bd7 {[%clk 0:02:31]} 18. b4 {[%clk 0:01:16]}  axb4 {[%clk 0:02:19]} 19. axb4 {[%clk 0:01:17]}  Na4 {[%clk 0:02:18]} 20. Qc2 {[%clk 0:01:02]}  Qg5 {[%clk 0:01:51]} 21. Ra1 {[%clk 0:00:55]}  h5 {[%clk 0:01:36]} 22. e3 {[%clk 0:00:41]}  f4 {[%clk 0:01:22]} 23. Ne4 {[%clk 0:00:17]}  Qg6 {[%clk 0:01:22]} 24. exf4 {[%clk 0:00:16]}  exf4 {[%clk 0:01:21]} 25. f3 {[%clk 0:00:09]}  fxg3 {[%clk 0:01:18]} 26. hxg3 {[%clk 0:00:10]}  Qh6 {[%clk 0:00:59]} 27. Kh2 {[%clk 0:00:09]}  h4 {[%clk 0:00:57]} 28. Qd2 {[%clk 0:00:08]}  hxg3+ {[%clk 0:00:55]} 29. Kxg3 {[%clk 0:00:09]}  Qg6+ {[%clk 0:00:49]} 30. Qg5 {[%clk 0:00:08]}  Qxg5+ {[%clk 0:00:49]} 31. Nxg5 {[%clk 0:00:09]}  Nc3 {[%clk 0:00:47]} 32. Re1 {[%clk 0:00:08]}  Rxa1 {[%clk 0:00:45]} 33. Rxa1 {[%clk 0:00:08]}  Ne2+ {[%clk 0:00:44]} 34. Kf2 {[%clk 0:00:07]}  Nf4 {[%clk 0:00:41]} 35. Bf1 {[%clk 0:00:07]}  Bf5 {[%clk 0:00:32]} 36. Ra7 {[%clk 0:00:07]}  Rc8 {[%clk 0:00:32]} 37. Ke3 {[%clk 0:00:06]}  Ng6 {[%clk 0:00:30]} 38. Bd3 {[%clk 0:00:05]}  Bxd3 {[%clk 0:00:29]} 39. Kxd3 {[%clk 0:00:06]}  Ne5+ {[%clk 0:00:25]} 40. Kd4 {[%clk 0:00:05]}  g6 {[%clk 0:00:24]} 41. f4 {[%clk 0:00:05]}  Nf7 {[%clk 0:00:24]} 42. Ne6 {[%clk 0:00:05]}  Nh6 {[%clk 0:00:14]} 43. Rxc7 {[%clk 0:00:04]}  Ra8 {[%clk 0:00:14]} 44. Rc6 {[%clk 0:00:00]}  Ra3 {[%clk 0:00:13]} 0-1


[Site "https://www.chess.com"]

[Event "Titled Tuesday Blitz July 4 Late 2023"]
[White "Silva Lucena, Cristian"]
[Black "Cooper, Aaron"]
[WhiteFideId "2232588"]
[BlackFideId "2634945"]
[WhiteElo "2402"]
[BlackElo "2221"]
[Result "1-0"]
[Round "8"]
[TimeControl "180+2"]
[Date "2023.07.04"]
[WhiteClock "0:00:12"]
[BlackClock "0:01:03"]
[Board "105"]

1. Nf3 {[%clk 0:02:34]}  Nf6 {[%clk 0:02:59]} 2. c4 {[%clk 0:02:27]}  e6 {[%clk 0:02:59]} 3. e3 {[%clk 0:02:27]}  d5 {[%clk 0:02:59]} 4. Nc3 {[%clk 0:02:27]}  Be7 {[%clk 0:02:59]} 5. Be2 {[%clk 0:02:26]}  O-O {[%clk 0:02:59]} 6. O-O {[%clk 0:02:26]}  dxc4 {[%clk 0:02:56]} 7. Bxc4 {[%clk 0:02:26]}  a6 {[%clk 0:02:57]} 8. b3 {[%clk 0:02:25]}  Nc6 {[%clk 0:02:57]} 9. Be2 {[%clk 0:02:26]}  b5 {[%clk 0:02:57]} 10. Bb2 {[%clk 0:02:26]}  Bb7 {[%clk 0:02:57]} 11. Rc1 {[%clk 0:02:26]}  Qd7 {[%clk 0:02:55]} 12. d4 {[%clk 0:02:26]}  Rad8 {[%clk 0:02:50]} 13. a4 {[%clk 0:02:24]}  b4 {[%clk 0:02:49]} 14. Nb1 {[%clk 0:02:23]}  Na5 {[%clk 0:02:43]} 15. Nbd2 {[%clk 0:02:16]}  c5 {[%clk 0:02:31]} 16. dxc5 {[%clk 0:02:10]}  Bd5 {[%clk 0:02:10]} 17. Bxa6 {[%clk 0:01:36]}  Bxf3 {[%clk 0:02:04]} 18. Nxf3 {[%clk 0:01:29]}  Qa7 {[%clk 0:02:03]} 19. Bd3 {[%clk 0:01:10]}  Bxc5 {[%clk 0:01:55]} 20. Qc2 {[%clk 0:01:09]}  Be7 {[%clk 0:01:45]} 21. Bxf6 {[%clk 0:01:02]}  Bxf6 {[%clk 0:01:46]} 22. Bxh7+ {[%clk 0:01:02]}  Kh8 {[%clk 0:01:47]} 23. Bd3 {[%clk 0:00:58]}  Bc3 {[%clk 0:01:43]} 24. Ng5 {[%clk 0:00:51]}  Qe7 {[%clk 0:01:35]} 25. h4 {[%clk 0:00:49]}  Rd6 {[%clk 0:01:22]} 26. Bc4 {[%clk 0:00:41]}  g6 {[%clk 0:01:22]} 27. Ne4 {[%clk 0:00:39]}  Nxc4 {[%clk 0:01:17]} 28. bxc4 {[%clk 0:00:36]}  Rc6 {[%clk 0:01:17]} 29. Nxc3 {[%clk 0:00:25]}  bxc3 {[%clk 0:01:18]} 30. Qxc3+ {[%clk 0:00:25]}  Kg8 {[%clk 0:01:19]} 31. g3 {[%clk 0:00:25]}  Rfc8 {[%clk 0:01:17]} 32. Qd4 {[%clk 0:00:23]}  Qb4 {[%clk 0:01:16]} 33. c5 {[%clk 0:00:20]}  Qa5 {[%clk 0:01:12]} 34. Rc4 {[%clk 0:00:19]}  Rxc5 {[%clk 0:01:11]} 35. Rfc1 {[%clk 0:00:19]}  Rxc4 {[%clk 0:01:09]} 36. Rxc4 {[%clk 0:00:20]}  Qe1+ {[%clk 0:01:06]} 37. Kg2 {[%clk 0:00:19]}  Rb8 {[%clk 0:01:07]} 38. h5 {[%clk 0:00:12]}  Rb1 {[%clk 0:01:04]} 39. Rc8+ {[%clk 0:00:11]}  Kh7 {[%clk 0:01:03]} 40. Qh8# {[%clk 0:00:12]} 1-0


[Site "https://www.chess.com"]

[Event "Titled Tuesday Blitz July 4 Late 2023"]
[White "Vaglio Munoz, Jaime"]
[Black "Vlassov, Nikolai"]
[WhiteFideId "6500145"]
[BlackFideId "4103360"]
[WhiteElo "2304"]
[BlackElo "2550"]
[Result "0-1"]
[Round "8"]
[TimeControl "180+2"]
[Date "2023.07.04"]
[WhiteClock "0:00:40"]
[BlackClock "0:00:09"]
[Board "106"]

1. Nf3 {[%clk 0:03:00]}  c5 {[%clk 0:02:59]} 2. c4 {[%clk 0:03:00]}  g6 {[%clk 0:02:59]} 3. b3 {[%clk 0:03:00]}  Bg7 {[%clk 0:02:59]} 4. Nc3 {[%clk 0:03:00]}  Bxc3 {[%clk 0:02:53]} 5. dxc3 {[%clk 0:02:59]}  b6 {[%clk 0:02:47]} 6. g3 {[%clk 0:02:58]}  Bb7 {[%clk 0:02:47]} 7. Bg2 {[%clk 0:02:59]}  d6 {[%clk 0:02:45]} 8. b4 {[%clk 0:02:57]}  Nd7 {[%clk 0:02:45]} 9. b5 {[%clk 0:02:57]}  Ngf6 {[%clk 0:02:41]} 10. O-O {[%clk 0:02:55]}  O-O {[%clk 0:02:40]} 11. Bh6 {[%clk 0:02:54]}  Re8 {[%clk 0:02:39]} 12. h3 {[%clk 0:02:54]}  Qc7 {[%clk 0:02:35]} 13. a4 {[%clk 0:02:53]}  a5 {[%clk 0:02:27]} 14. Nd2 {[%clk 0:02:33]}  Bxg2 {[%clk 0:02:25]} 15. Kxg2 {[%clk 0:02:34]}  Rad8 {[%clk 0:02:12]} 16. f3 {[%clk 0:02:08]}  d5 {[%clk 0:01:58]} 17. Qb3 {[%clk 0:01:53]}  dxc4 {[%clk 0:01:34]} 18. Nxc4 {[%clk 0:01:52]}  Nh5 {[%clk 0:01:31]} 19. f4 {[%clk 0:01:45]}  e5 {[%clk 0:01:12]} 20. Nxe5 {[%clk 0:01:32]}  Nxe5 {[%clk 0:01:10]} 21. fxe5 {[%clk 0:01:33]}  Rxe5 {[%clk 0:01:05]} 22. Rf2 {[%clk 0:01:19]}  Rde8 {[%clk 0:00:50]} 23. g4 {[%clk 0:01:10]}  c4 {[%clk 0:00:45]} 24. Qd1 {[%clk 0:01:06]}  Re3 {[%clk 0:00:37]} 25. Rf3 {[%clk 0:01:02]}  Rxe2+ {[%clk 0:00:34]} 26. Kf1 {[%clk 0:00:53]}  Qh2 {[%clk 0:00:20]} 27. Qxe2 {[%clk 0:00:49]}  Qxe2+ {[%clk 0:00:18]} 28. Kg1 {[%clk 0:00:49]}  Qxf3 {[%clk 0:00:18]} 29. Rf1 {[%clk 0:00:47]}  Qg3+ {[%clk 0:00:18]} 30. Kh1 {[%clk 0:00:46]}  Qxh3+ {[%clk 0:00:18]} 31. Kg1 {[%clk 0:00:46]}  Qxg4+ {[%clk 0:00:18]} 32. Kh1 {[%clk 0:00:46]}  Qh3+ {[%clk 0:00:19]} 33. Kg1 {[%clk 0:00:46]}  Ng3 {[%clk 0:00:18]} 34. Bf4 {[%clk 0:00:42]}  Qxf1+ {[%clk 0:00:17]} 35. Kh2 {[%clk 0:00:42]}  Qf2+ {[%clk 0:00:18]} 36. Kh3 {[%clk 0:00:41]}  Qxf4 {[%clk 0:00:17]} 37. Kg2 {[%clk 0:00:42]}  Re2+ {[%clk 0:00:17]} 38. Kh3 {[%clk 0:00:42]}  Qf1+ {[%clk 0:00:13]} 39. Kg4 {[%clk 0:00:42]}  h5+ {[%clk 0:00:12]} 40. Kh4 {[%clk 0:00:40]}  Rh2+ {[%clk 0:00:10]} 41. Kg5 {[%clk 0:00:40]}  Qf5+ {[%clk 0:00:08]} 42. Kh6 {[%clk 0:00:40]}  Qf4# {[%clk 0:00:09]} 0-1


[Site "https://www.chess.com"]

[Event "Titled Tuesday Blitz July 4 Late 2023"]
[White "Saucey, Michel"]
[Black "Melikhov, Evgeny V."]
[WhiteFideId "601845"]
[BlackFideId "4122046"]
[WhiteElo "2287"]
[BlackElo "2401"]
[Result "0-1"]
[Round "8"]
[TimeControl "180+2"]
[Date "2023.07.04"]
[WhiteClock "0:00:00"]
[BlackClock "0:00:49"]
[Board "108"]

1. d4 {[%clk 0:03:00]}  Nf6 {[%clk 0:02:59]} 2. Nf3 {[%clk 0:03:00]}  d5 {[%clk 0:02:58]} 3. c4 {[%clk 0:03:00]}  e6 {[%clk 0:02:57]} 4. Nc3 {[%clk 0:02:59]}  Bb4 {[%clk 0:02:56]} 5. Qa4+ {[%clk 0:02:54]}  Nc6 {[%clk 0:02:55]} 6. e3 {[%clk 0:02:53]}  O-O {[%clk 0:02:52]} 7. Bd2 {[%clk 0:02:52]}  dxc4 {[%clk 0:02:51]} 8. Bxc4 {[%clk 0:02:51]}  Bd6 {[%clk 0:02:51]} 9. Nb5 {[%clk 0:02:45]}  e5 {[%clk 0:02:46]} 10. Nxd6 {[%clk 0:02:45]}  cxd6 {[%clk 0:02:46]} 11. dxe5 {[%clk 0:02:35]}  dxe5 {[%clk 0:02:46]} 12. Bc3 {[%clk 0:02:34]}  Qe7 {[%clk 0:02:37]} 13. O-O {[%clk 0:02:21]}  Bg4 {[%clk 0:02:32]} 14. Nd2 {[%clk 0:02:20]}  a6 {[%clk 0:02:25]} 15. Qc2 {[%clk 0:02:17]}  b5 {[%clk 0:02:15]} 16. Bd3 {[%clk 0:01:03]}  b4 {[%clk 0:02:07]} 17. Be4 {[%clk 0:01:02]}  Rac8 {[%clk 0:01:56]} 18. Bxc6 {[%clk 0:01:01]}  Rxc6 {[%clk 0:01:56]} 19. Bxb4 {[%clk 0:01:00]}  Rxc2 {[%clk 0:01:50]} 20. Bxe7 {[%clk 0:01:00]}  Rxd2 {[%clk 0:01:50]} 21. Bxf8 {[%clk 0:00:59]}  Kxf8 {[%clk 0:01:51]} 22. f3 {[%clk 0:00:58]}  Be6 {[%clk 0:01:50]} 23. b3 {[%clk 0:00:57]}  Nd5 {[%clk 0:01:48]} 24. Rf2 {[%clk 0:00:56]}  Rd3 {[%clk 0:01:43]} 25. Re1 {[%clk 0:00:51]}  f6 {[%clk 0:01:28]} 26. e4 {[%clk 0:00:40]}  Nf4 {[%clk 0:01:27]} 27. Rc2 {[%clk 0:00:39]}  h5 {[%clk 0:01:20]} 28. g3 {[%clk 0:00:34]}  Nh3+ {[%clk 0:01:06]} 29. Kg2 {[%clk 0:00:34]}  Ng5 {[%clk 0:01:06]} 30. f4 {[%clk 0:00:23]}  Nxe4 {[%clk 0:01:02]} 31. fxe5 {[%clk 0:00:18]}  f5 {[%clk 0:01:00]} 32. Rf1 {[%clk 0:00:05]}  g6 {[%clk 0:00:58]} 33. Rf3 {[%clk 0:00:02]}  Rd1 {[%clk 0:00:53]} 34. Rf1 {[%clk 0:00:00]}  Rd5 {[%clk 0:00:49]} 0-1


[Site "https://www.chess.com"]

[Event "Titled Tuesday Blitz July 4 Late 2023"]
[White "Kostiukov, Alexandr"]
[Black "Sailer, Mike"]
[WhiteFideId "14108100"]
[BlackFideId "2012901"]
[WhiteElo "2305"]
[BlackElo "2145"]
[Result "0-1"]
[Round "8"]
[TimeControl "180+2"]
[Date "2023.07.04"]
[WhiteClock "0:00:08"]
[BlackClock "0:00:09"]
[Board "113"]

1. g3 {[%clk 0:03:00]}  d5 {[%clk 0:02:59]} 2. Bg2 {[%clk 0:02:59]}  Nf6 {[%clk 0:02:59]} 3. d3 {[%clk 0:03:00]}  Bf5 {[%clk 0:02:59]} 4. Nc3 {[%clk 0:02:56]}  e6 {[%clk 0:02:56]} 5. e4 {[%clk 0:02:56]}  Bg6 {[%clk 0:02:55]} 6. e5 {[%clk 0:02:53]}  Nfd7 {[%clk 0:02:55]} 7. f4 {[%clk 0:02:54]}  c5 {[%clk 0:02:51]} 8. Nf3 {[%clk 0:02:54]}  Be7 {[%clk 0:02:44]} 9. O-O {[%clk 0:02:51]}  Nc6 {[%clk 0:02:42]} 10. Bd2 {[%clk 0:02:50]}  O-O {[%clk 0:02:42]} 11. h3 {[%clk 0:02:41]}  Rb8 {[%clk 0:02:33]} 12. g4 {[%clk 0:02:41]}  b5 {[%clk 0:02:22]} 13. Ne2 {[%clk 0:02:29]}  c4 {[%clk 0:02:07]} 14. Be3 {[%clk 0:02:06]}  cxd3 {[%clk 0:01:51]} 15. cxd3 {[%clk 0:02:06]}  Nb4 {[%clk 0:01:48]} 16. Nc1 {[%clk 0:01:57]}  Rc8 {[%clk 0:01:23]} 17. Nd4 {[%clk 0:01:48]}  Bc5 {[%clk 0:01:01]} 18. f5 {[%clk 0:01:24]}  Bxd4 {[%clk 0:01:01]} 19. Bxd4 {[%clk 0:01:22]}  Nc2 {[%clk 0:01:02]} 20. fxg6 {[%clk 0:01:13]}  Nxd4 {[%clk 0:00:49]} 21. gxh7+ {[%clk 0:01:12]}  Kxh7 {[%clk 0:00:35]} 22. Ne2 {[%clk 0:00:44]}  Nc2 {[%clk 0:00:31]} 23. Rc1 {[%clk 0:00:29]}  Ne3 {[%clk 0:00:31]} 24. Qd2 {[%clk 0:00:22]}  Nxf1 {[%clk 0:00:29]} 25. Rxf1 {[%clk 0:00:23]}  Nxe5 {[%clk 0:00:24]} 26. d4 {[%clk 0:00:20]}  Nc4 {[%clk 0:00:17]} 27. Qd3+ {[%clk 0:00:20]}  Kg8 {[%clk 0:00:16]} 28. b3 {[%clk 0:00:20]}  Nd6 {[%clk 0:00:15]} 29. Ng3 {[%clk 0:00:19]}  Qg5 {[%clk 0:00:14]} 30. Re1 {[%clk 0:00:18]}  Rc1 {[%clk 0:00:14]} 31. Qe2 {[%clk 0:00:17]}  Rxe1+ {[%clk 0:00:14]} 32. Qxe1 {[%clk 0:00:17]}  Rc8 {[%clk 0:00:14]} 33. Kh2 {[%clk 0:00:17]}  Rc1 {[%clk 0:00:14]} 34. Qf2 {[%clk 0:00:15]}  Ne4 {[%clk 0:00:06]} 35. Nxe4 {[%clk 0:00:14]}  dxe4 {[%clk 0:00:07]} 36. Bxe4 {[%clk 0:00:15]}  Rc8 {[%clk 0:00:06]} 37. Bg2 {[%clk 0:00:14]}  Qc1 {[%clk 0:00:05]} 38. h4 {[%clk 0:00:13]}  Qc7+ {[%clk 0:00:05]} 39. Kh3 {[%clk 0:00:12]}  Qc3+ {[%clk 0:00:05]} 40. Kh2 {[%clk 0:00:13]}  Qd3 {[%clk 0:00:05]} 41. h5 {[%clk 0:00:12]}  Rc2 {[%clk 0:00:04]} 42. Qg3 {[%clk 0:00:12]}  Qxg3+ {[%clk 0:00:04]} 43. Kxg3 {[%clk 0:00:13]}  Rd2 {[%clk 0:00:05]} 44. d5 {[%clk 0:00:13]}  exd5 {[%clk 0:00:05]} 45. Bf3 {[%clk 0:00:14]}  d4 {[%clk 0:00:05]} 46. Kf4 {[%clk 0:00:14]}  Rf2 {[%clk 0:00:05]} 47. Ke4 {[%clk 0:00:14]}  f6 {[%clk 0:00:04]} 48. Bd1 {[%clk 0:00:10]}  Rd2 {[%clk 0:00:04]} 49. Bf3 {[%clk 0:00:09]}  Kf7 {[%clk 0:00:04]} 50. a4 {[%clk 0:00:09]}  bxa4 {[%clk 0:00:04]} 51. bxa4 {[%clk 0:00:10]}  a5 {[%clk 0:00:05]} 52. Kf4 {[%clk 0:00:09]}  Ke6 {[%clk 0:00:05]} 53. Bc6 {[%clk 0:00:09]}  Rd1 {[%clk 0:00:04]} 54. Bb5 {[%clk 0:00:09]}  Kd5 {[%clk 0:00:04]} 55. Kf5 {[%clk 0:00:10]}  Kc5 {[%clk 0:00:03]} 56. Kg6 {[%clk 0:00:10]}  Rg1 {[%clk 0:00:02]} 57. Kxg7 {[%clk 0:00:10]}  Rxg4+ {[%clk 0:00:03]} 58. Kxf6 {[%clk 0:00:11]}  Rh4 {[%clk 0:00:03]} 59. Kg5 {[%clk 0:00:11]}  Rh2 {[%clk 0:00:03]} 60. h6 {[%clk 0:00:11]}  Kb4 {[%clk 0:00:03]} 61. Kg6 {[%clk 0:00:11]}  Kc3 {[%clk 0:00:03]} 62. h7 {[%clk 0:00:09]}  d3 {[%clk 0:00:03]} 63. Kg7 {[%clk 0:00:07]}  d2 {[%clk 0:00:03]} 64. Be2 {[%clk 0:00:07]}  Kc2 {[%clk 0:00:03]} 65. h8=Q {[%clk 0:00:06]}  Rxh8 {[%clk 0:00:04]} 66. Kxh8 {[%clk 0:00:07]}  d1=Q {[%clk 0:00:04]} 67. Bxd1+ {[%clk 0:00:07]}  Kxd1 {[%clk 0:00:05]} 68. Kg7 {[%clk 0:00:08]}  Kc2 {[%clk 0:00:06]} 69. Kf6 {[%clk 0:00:09]}  Kb3 {[%clk 0:00:07]} 70. Ke5 {[%clk 0:00:10]}  Kxa4 {[%clk 0:00:08]} 71. Kd4 {[%clk 0:00:10]}  Kb3 {[%clk 0:00:08]} 72. Kd3 {[%clk 0:00:08]}  a4 {[%clk 0:00:09]} 0-1


[Site "https://www.chess.com"]

[Event "Titled Tuesday Blitz July 4 Late 2023"]
[White "Howell, David W L"]
[Black "Sanchez, Robert"]
[WhiteFideId "410608"]
[BlackFideId "2034360"]
[WhiteElo "2997"]
[BlackElo "2207"]
[Result "1-0"]
[Round "8"]
[TimeControl "180+2"]
[Date "2023.07.04"]
[WhiteClock "0:00:07"]
[BlackClock "0:00:09"]
[Board "114"]

1. d4 {[%clk 0:03:00]}  Nf6 {[%clk 0:02:56]} 2. c4 {[%clk 0:03:00]}  e6 {[%clk 0:02:54]} 3. Bf4 {[%clk 0:03:00]}  d5 {[%clk 0:02:51]} 4. e3 {[%clk 0:02:59]}  Bd6 {[%clk 0:02:49]} 5. Bg3 {[%clk 0:02:55]}  Ne4 {[%clk 0:02:42]} 6. Nc3 {[%clk 0:02:55]}  Bb4 {[%clk 0:02:19]} 7. Qc2 {[%clk 0:02:47]}  h5 {[%clk 0:02:10]} 8. f3 {[%clk 0:02:30]}  Nxg3 {[%clk 0:02:09]} 9. hxg3 {[%clk 0:02:31]}  c6 {[%clk 0:01:44]} 10. f4 {[%clk 0:02:26]}  Nd7 {[%clk 0:01:39]} 11. Nf3 {[%clk 0:02:22]}  Nf6 {[%clk 0:01:27]} 12. Bd3 {[%clk 0:02:16]}  dxc4 {[%clk 0:01:22]} 13. Bxc4 {[%clk 0:02:16]}  Qa5 {[%clk 0:01:11]} 14. Rc1 {[%clk 0:01:53]}  Bd7 {[%clk 0:01:08]} 15. Ne5 {[%clk 0:01:51]}  Bd6 {[%clk 0:00:59]} 16. O-O {[%clk 0:01:39]}  h4 {[%clk 0:00:52]} 17. g4 {[%clk 0:01:04]}  h3 {[%clk 0:00:42]} 18. g5 {[%clk 0:00:45]}  Nd5 {[%clk 0:00:38]} 19. Rf3 {[%clk 0:00:29]}  hxg2 {[%clk 0:00:33]} 20. Ne4 {[%clk 0:00:25]}  Bxe5 {[%clk 0:00:29]} 21. fxe5 {[%clk 0:00:23]}  O-O-O {[%clk 0:00:11]} 22. Kxg2 {[%clk 0:00:19]}  Kb8 {[%clk 0:00:08]} 23. Qf2 {[%clk 0:00:13]}  f5 {[%clk 0:00:06]} 24. exf6 {[%clk 0:00:10]}  gxf6 {[%clk 0:00:07]} 25. gxf6 {[%clk 0:00:10]}  Rdg8+ {[%clk 0:00:06]} 26. Rg3 {[%clk 0:00:11]}  Rxg3+ {[%clk 0:00:06]} 27. Qxg3+ {[%clk 0:00:11]}  Ka8 {[%clk 0:00:06]} 28. f7 {[%clk 0:00:11]}  a6 {[%clk 0:00:03]} 29. Qg8+ {[%clk 0:00:05]}  Rxg8+ {[%clk 0:00:03]} 30. fxg8=Q+ {[%clk 0:00:06]}  Ka7 {[%clk 0:00:04]} 31. Qg3 {[%clk 0:00:05]}  Qb4 {[%clk 0:00:04]} 32. Bb3 {[%clk 0:00:04]}  e5 {[%clk 0:00:04]} 33. Qf2 {[%clk 0:00:02]}  exd4 {[%clk 0:00:04]} 34. exd4 {[%clk 0:00:03]}  Qb6 {[%clk 0:00:05]} 35. Nc5 {[%clk 0:00:04]}  Bc8 {[%clk 0:00:05]} 36. Rc3 {[%clk 0:00:04]}  Qb4 {[%clk 0:00:05]} 37. Rg3 {[%clk 0:00:04]}  a5 {[%clk 0:00:05]} 38. Bxd5 {[%clk 0:00:04]}  cxd5 {[%clk 0:00:06]} 39. a3 {[%clk 0:00:05]}  Qb5 {[%clk 0:00:05]} 40. Kh2 {[%clk 0:00:06]}  Qc4 {[%clk 0:00:06]} 41. b3 {[%clk 0:00:05]}  Qb5 {[%clk 0:00:07]} 42. Qd2 {[%clk 0:00:05]}  Qc6 {[%clk 0:00:08]} 43. a4 {[%clk 0:00:06]}  b6 {[%clk 0:00:08]} 44. Nd3 {[%clk 0:00:06]}  Bb7 {[%clk 0:00:09]} 45. Ne5 {[%clk 0:00:07]}  Qf6 {[%clk 0:00:09]} 46. Kg2 {[%clk 0:00:07]}  Qh4 {[%clk 0:00:09]} 47. Nf3 {[%clk 0:00:07]}  Qe4 {[%clk 0:00:09]} 48. Qe1 {[%clk 0:00:07]}  Qb1 {[%clk 0:00:09]} 49. Qxb1 {[%clk 0:00:07]} 1-0


[Site "https://www.chess.com"]